fUSD/lending_fUSD_20250514
["ID","MTS","AMOUNT","RATE_DAILY","PERIOD"]
[361089535,1747247432286,-401.2057393,0.00010958,2]
[361089537,1747247432295,-400.0,0.00010958,2]
[361089538,1747247432304,-400.0,0.00010958,2]
[361089539,1747247432313,-400.0,0.00010958,2]
[361089540,1747247432322,-400.0,0.00010958,2]
[361089541,1747247432331,-358.36672606,0.00010958,2]
[361089542,1747247432342,-41.63327394,0.00010958,2]
[361089543,1747247432351,-400.0,0.00010958,2]
[361089544,1747247432360,-183.15718885,0.00010958,2]
[361089545,1747247432371,-216.84281115,0.00010958,2]
[361089546,1747247432380,-115.41814162,0.00010958,2]
[361089547,1747247432391,-350.79062724,0.00010958,2]
[361089548,1747247432401,-517.06643452,0.00010958,2]
[361089549,1747247432410,-400.0,0.00010958,2]
[361089550,1747247432419,-400.0,0.00010958,2]
[361089551,1747247432428,-400.0,0.00010958,2]
[361089552,1747247432437,-400.0,0.00010958,2]
[361089553,1747247432445,-400.0,0.00010958,2]
[361089554,1747247432454,-400.0,0.00010958,2]
[361089555,1747247432463,-400.0,0.00010958,2]
[361089556,1747247432472,-400.0,0.00010958,2]
[361089557,1747247432481,-400.0,0.00010958,2]
[361089558,1747247432490,-400.0,0.00010958,2]
[361089559,1747247432498,-400.0,0.00010958,2]
[361089560,1747247432507,-400.0,0.00010958,2]
[361089561,1747247432517,-400.0,0.00010958,2]
[361089563,1747247432526,-400.0,0.00010958,2]
[361089564,1747247432535,-400.0,0.00010958,2]
[361089565,1747247432544,-400.0,0.00010958,2]
[361089567,1747247432554,-401.4969301,0.00010958,2]
[361089569,1747247432564,-233.27603368,0.00010959,2]
[361089571,1747247432573,-250.0,0.00010981,2]
[361089573,1747247432582,-166.03184021,0.00011,2]
[361089575,1747247432591,-1818.372,0.00011,2]
[361089577,1747247432601,-200.0,0.00011,2]
[361089579,1747247432610,-500.0,0.00011041,2]
[361089582,1747247432620,-200.0,0.00011122,2]
[361089584,1747247432630,-16113.93388248,0.00011123,2]
[361089586,1747247432639,-571.88345414,0.00011123,2]
[361089588,1747247432649,-207.01643004,0.00011123,2]
[361089590,1747247432658,-225.5199,0.00011124,2]
[361089591,1747247432667,-2427.66,0.00011125,2]
[361089593,1747247432677,-289.5381,0.00011132,2]
[361089594,1747247432686,-864.05076374,0.00011156,2]
[361089595,1747247432695,-165.09,0.00011212,2]
[361089596,1747247432704,-165.09,0.00011213,2]
[361089597,1747247432713,-165.09,0.00011213,2]
[361089598,1747247432723,-165.09,0.00011213,2]
[361089599,1747247432732,-165.09,0.00011213,2]
[361089600,1747247432741,-481.56,0.00011222,2]
[361089601,1747247432750,-5036.64,0.00011222,2]
[361089602,1747247432759,-1092.871044,0.00011222,2]
[361089603,1747247432769,-400.0,0.00011222,2]
[361089604,1747247432778,-462.45,0.00011222,2]
[361089605,1747247432787,-400.0,0.00011222,2]
[361089606,1747247432796,-400.0,0.00011222,2]
[361089607,1747247432805,-400.0,0.00011222,2]
[361089608,1747247432815,-161.568085,0.00011222,2]
[361089609,1747247432824,-400.0,0.00011222,2]
[361089610,1747247432833,-554.1,0.00011222,2]
[361089611,1747247432843,-1876.249657,0.00011222,2]
[361089612,1747247432852,-3678.66,0.00011222,2]
[361089613,1747247432862,-1954.23,0.00011222,2]
[361089614,1747247432871,-400.0,0.00011222,2]
[361089615,1747247432880,-400.0,0.00011222,2]
[361089616,1747247432890,-400.0,0.00011222,2]
[361089617,1747247432899,-1015.22,0.00011222,2]
[361089618,1747247432908,-904.93,0.00011222,2]
[361089619,1747247432918,-1052.26,0.00011222,2]
[361089620,1747247432927,-400.0,0.00011222,2]
[361089621,1747247432936,-874.61,0.00011222,2]
[361089622,1747247432945,-481.42,0.00011222,2]
[361089623,1747247432954,-400.0,0.00011222,2]
[361089624,1747247432963,-730.14,0.00011222,2]
[361089625,1747247432972,-400.0,0.00011222,2]
[361089626,1747247432980,-400.0,0.00011222,2]
[361089627,1747247432989,-533.75,0.00011222,2]
[361089628,1747247432998,-400.0,0.00011222,2]
[361089629,1747247433007,-1439.2,0.00011222,2]
[361089630,1747247433016,-400.0,0.00011222,2]
[361089631,1747247433268,-463.37,0.00011222,2]
[361089632,1747247433278,-791.65,0.00011222,2]
[361089633,1747247433289,-400.0,0.00011222,2]
[361089634,1747247433298,-400.0,0.00011222,2]
[361089635,1747247433308,-1199.51,0.00011222,2]
[361089636,1747247433317,-400.0,0.00011222,2]
[361089637,1747247433326,-668.93,0.00011222,2]
[361089638,1747247433335,-482.82,0.00011222,2]
[361089639,1747247433344,-400.0,0.00011222,2]
[361089640,1747247433354,-1033.33,0.00011222,2]
[361089641,1747247433363,-400.0,0.00011222,2]
[361089642,1747247433372,-400.0,0.00011222,2]
[361089643,1747247433381,-400.0,0.00011222,2]
[361089644,1747247433391,-4768.18,0.00011222,2]
[361089645,1747247433401,-892.79,0.00011222,2]
[361089646,1747247433411,-1663.97,0.00011222,2]
[361089647,1747247433420,-400.0,0.00011222,2]
[361089648,1747247433430,-400.0,0.00011222,2]
[361089649,1747247433439,-400.0,0.00011222,2]
[361089650,1747247433449,-470.87,0.00011222,2]
[361089651,1747247433458,-400.0,0.00011222,2]
[361089652,1747247433467,-7119.94,0.00011222,2]
[361089653,1747247433477,-400.0,0.00011222,2]
[361089654,1747247433486,-629.98,0.00011222,2]
[361089655,1747247433495,-400.0,0.00011222,2]
[361089656,1747247433505,-400.0,0.00011222,2]
[361089657,1747247433515,-640.51,0.00011222,2]
[361089658,1747247433524,-400.0,0.00011222,2]
[361089659,1747247433534,-618.83,0.00011222,2]
[361089660,1747247433543,-658.57,0.00011222,2]
[361089661,1747247433554,-1680.02,0.00011222,2]
[361089662,1747247433564,-63613.56,0.00011222,2]
[361089663,1747247433573,-400.0,0.00011222,2]
[361089664,1747247433583,-470.83681643,0.00011222,2]
[361089665,1747247433592,-542.31,0.00011222,2]
[361089666,1747247433601,-400.0,0.00011222,2]
[361089667,1747247433612,-400.0,0.00011222,2]
[361089668,1747247433621,-1194.27,0.00011222,2]
[361089669,1747247433630,-400.0,0.00011222,2]
[361089670,1747247433640,-400.0,0.00011222,2]
[361089671,1747247433649,-400.0,0.00011222,2]
[361089672,1747247433659,-400.0,0.00011222,2]
[361089673,1747247433668,-400.0,0.00011222,2]
[361089674,1747247433677,-2924.07,0.00011222,2]
[361089675,1747247433687,-768.13,0.00011222,2]
[361089676,1747247433696,-400.0,0.00011222,2]
[361089677,1747247433705,-709.44,0.00011222,2]
[361089678,1747247433715,-1118.74,0.00011222,2]
[361089679,1747247433724,-400.0,0.00011222,2]
[361089680,1747247433733,-1219.72,0.00011222,2]
[361089681,1747247433743,-400.0,0.00011222,2]
[361089682,1747247433752,-1030.48,0.00011222,2]
[361089683,1747247433762,-400.0,0.00011222,2]
[361089684,1747247433771,-400.0,0.00011222,2]
[361089685,1747247433780,-400.0,0.00011223,2]
[361089686,1747247433790,-400.0,0.00011223,2]
[361089687,1747247433799,-400.0,0.00011223,2]
[361089688,1747247433808,-400.0,0.00011223,2]
[361089689,1747247433818,-400.0,0.00011223,2]
[361089690,1747247433827,-400.0,0.00011223,2]
[361089691,1747247433836,-471.49946636,0.00011223,2]
[361089692,1747247433845,-400.0,0.00011223,2]
[361089693,1747247433855,-400.0,0.00011223,2]
[361089694,1747247433865,-400.0,0.00011223,2]
[361089695,1747247433874,-400.0,0.00011223,2]
[361089696,1747247433883,-400.0,0.00011223,2]
[361089697,1747247433892,-400.0,0.00011223,2]
[361089698,1747247433902,-400.0,0.00011223,2]
[361089699,1747247433912,-400.0,0.00011223,2]
[361089700,1747247433922,-400.0,0.00011223,2]
[361089701,1747247433932,-400.0,0.00011223,2]
[361089702,1747247433941,-170.04288718,0.00011223,2]
[361089703,1747247433950,-400.0,0.00011223,2]
[361089704,1747247433960,-400.0,0.00011223,2]
[361089705,1747247433969,-400.0,0.00011223,2]
[361089706,1747247433979,-403.03537546,0.00011223,2]
[361089707,1747247433988,-250.0,0.00011223,2]
[361089708,1747247433997,-400.0,0.00011223,2]
[361089709,1747247434007,-400.0,0.00011223,2]
[361089710,1747247434016,-400.0,0.00011223,2]
[361089711,1747247434026,-400.0,0.00011223,2]
[361089712,1747247434035,-400.0,0.00011223,2]
[361089713,1747247434045,-400.0,0.00011223,2]
[361089714,1747247434054,-400.0,0.00011223,2]
[361089715,1747247434064,-404.28853668,0.00011223,2]
[361089716,1747247434073,-400.0,0.00011223,2]
[361089717,1747247434083,-400.0,0.00011223,2]
[361089718,1747247434093,-408.00525234,0.00011223,2]
[361089719,1747247434103,-401.79134093,0.00011223,2]
[361089720,1747247434113,-406.43755102,0.00011223,2]
[361089721,1747247434122,-400.0,0.00011223,2]
[361089722,1747247434132,-400.0,0.00011223,2]
[361089723,1747247434141,-404.35749493,0.00011223,2]
[361089724,1747247434151,-400.0,0.00011223,2]
[361089725,1747247434162,-400.0,0.00011223,2]
[361089726,1747247434172,-400.0,0.00011223,2]
[361089727,1747247434183,-400.0,0.00011223,2]
[361089728,1747247434192,-400.0,0.00011223,2]
[361089729,1747247434202,-400.0,0.00011223,2]
[361089730,1747247434212,-262.14584552,0.00011223,2]
[361089731,1747247434222,-400.0,0.00011223,2]
[361089732,1747247434231,-400.0,0.00011223,2]
[361089733,1747247434243,-400.0,0.00011223,2]
[361089734,1747247434253,-400.0,0.00011223,2]
[361089735,1747247434263,-400.0,0.00011223,2]
[361089736,1747247434272,-400.0,0.00011223,2]
[361089737,1747247434282,-296.98181587,0.00011223,2]
[361089738,1747247434292,-400.0,0.00011223,2]
[361089739,1747247434302,-400.0,0.00011223,2]
[361089740,1747247434311,-400.0,0.00011223,2]
[361089741,1747247434321,-400.0,0.00011223,2]
[361089742,1747247434332,-400.0,0.00011223,2]
[361089743,1747247434341,-400.0,0.00011223,2]
[361089744,1747247434351,-400.0,0.00011223,2]
[361089745,1747247434361,-400.0,0.00011223,2]
[361089746,1747247434371,-400.0,0.00011223,2]
[361089747,1747247434380,-400.0,0.00011223,2]
[361089748,1747247434391,-400.0,0.00011223,2]
[361089749,1747247434400,-400.0,0.00011223,2]
[361089750,1747247434410,-400.0,0.00011223,2]
[361089751,1747247434420,-400.0,0.00011223,2]
[361089752,1747247434430,-404.30043357,0.00011223,2]
[361089753,1747247434440,-400.0,0.00011223,2]
[361089754,1747247434449,-400.0,0.00011223,2]
[361089755,1747247434458,-400.0,0.00011223,2]
[361089756,1747247434468,-163.84321578,0.00011223,2]
[361089757,1747247434477,-400.0,0.00011223,2]
[361089758,1747247434487,-400.0,0.00011223,2]
[361089759,1747247434497,-400.0,0.00011223,2]
[361089760,1747247434506,-400.0,0.00011223,2]
[361089761,1747247434515,-400.0,0.00011223,2]
[361089762,1747247434525,-400.0,0.00011223,2]
[361089763,1747247434534,-400.0,0.00011223,2]
[361089764,1747247434544,-400.0,0.00011223,2]
[361089765,1747247434555,-404.67037495,0.00011223,2]
[361089766,1747247434564,-370.79232578,0.00011223,2]
[361089767,1747247434575,-400.0,0.00011223,2]
[361089768,1747247434585,-400.0,0.00011223,2]
[361089769,1747247434594,-400.0,0.00011223,2]
[361089770,1747247434604,-400.0,0.00011223,2]
[361089771,1747247434614,-400.0,0.00011223,2]
[361089772,1747247434623,-400.0,0.00011223,2]
[361089773,1747247434633,-400.0,0.00011223,2]
[361089774,1747247434642,-400.0,0.00011223,2]
[361089775,1747247434652,-400.0,0.00011223,2]
[361089776,1747247434662,-416.57857675,0.00011223,2]
[361089777,1747247434672,-500.0,0.00011223,2]
[361089778,1747247434682,-400.0,0.00011223,2]
[361089779,1747247434691,-400.0,0.00011223,2]
[361089780,1747247434701,-400.0,0.00011223,2]
[361089781,1747247434710,-400.0,0.00011223,2]
[361089782,1747247434720,-400.0,0.00011223,2]
[361089783,1747247434730,-400.0,0.00011223,2]
[361089784,1747247434740,-400.0,0.00011223,2]
[361089785,1747247434749,-400.0,0.00011223,2]
[361089786,1747247434758,-400.0,0.00011223,2]
[361089787,1747247434767,-400.0,0.00011223,2]
[361089788,1747247434776,-400.0,0.00011223,2]
[361089789,1747247434786,-400.0,0.00011223,2]
[361089790,1747247434796,-400.0,0.00011223,2]
[361089791,1747247434805,-400.0,0.00011223,2]
[361089792,1747247434815,-400.0,0.00011223,2]
[361089793,1747247434826,-400.0,0.00011223,2]
[361089794,1747247434836,-400.0,0.00011223,2]
[361089795,1747247434846,-400.0,0.00011223,2]
[361089796,1747247434855,-400.0,0.00011223,2]
[361089797,1747247434865,-400.0,0.00011223,2]
[361089798,1747247434875,-500.0,0.00011223,2]
[361089799,1747247434884,-400.0,0.00011223,2]
[361089800,1747247434893,-400.0,0.00011223,2]
[361089801,1747247434902,-400.0,0.00011223,2]
[361089802,1747247434912,-400.0,0.00011223,2]
[361089803,1747247434922,-400.0,0.00011223,2]
[361089804,1747247434932,-403.83267939,0.00011223,2]
[361089805,1747247434942,-400.0,0.00011223,2]
[361089806,1747247434951,-400.0,0.00011223,2]
[361089807,1747247434960,-540.13073377,0.00011223,2]
[361089808,1747247434970,-400.0,0.00011223,2]
[361089809,1747247434979,-400.0,0.00011223,2]
[361089810,1747247434989,-400.0,0.00011223,2]
[361089811,1747247434998,-400.0,0.00011223,2]
[361089812,1747247435008,-400.0,0.00011223,2]
[361089813,1747247435017,-400.0,0.00011223,2]
[361089814,1747247435027,-400.0,0.00011223,2]
[361089815,1747247435036,-500.0,0.00011223,2]
[361089816,1747247435046,-197.92545786,0.00011223,2]
[361089817,1747247435055,-400.0,0.00011223,2]
[361089818,1747247435064,-463.04238771,0.00011223,2]
[361089819,1747247435072,-400.0,0.00011223,2]
[361089820,1747247435082,-400.0,0.00011223,2]
[361089821,1747247435092,-400.0,0.00011223,2]
[361089822,1747247435102,-400.0,0.00011223,2]
[361089823,1747247435111,-400.0,0.00011223,2]
[361089824,1747247435120,-400.0,0.00011223,2]
[361089825,1747247435130,-1000.0,0.00011223,2]
[361089826,1747247435139,-409.84216593,0.00011223,2]
[361089827,1747247435148,-400.0,0.00011223,2]
[361089828,1747247435157,-400.0,0.00011223,2]
[361089829,1747247435170,-400.0,0.00011223,2]
[361089830,1747247435180,-400.0,0.00011223,2]
[361089831,1747247435189,-579.28,0.00011223,2]
[361089832,1747247435199,-400.0,0.00011223,2]
[361089833,1747247435209,-400.0,0.00011223,2]
[361089834,1747247435219,-400.0,0.00011223,2]
[361089835,1747247435228,-400.0,0.00011223,2]
[361089836,1747247435243,-400.0,0.00011223,2]
[361089837,1747247435253,-400.0,0.00011223,2]
[361089838,1747247435263,-419.18003224,0.00011223,2]
[361089839,1747247435272,-201.24705389,0.00011223,2]
[361089840,1747247435282,-400.0,0.00011223,2]
[361089841,1747247435291,-400.0,0.00011223,2]
[361089842,1747247435300,-400.0,0.00011223,2]
[361089843,1747247435310,-400.0,0.00011223,2]
[361089844,1747247435319,-400.0,0.00011223,2]
[361089845,1747247435329,-400.0,0.00011223,2]
[361089846,1747247435339,-455.89164944,0.00011223,2]
[361089847,1747247435349,-400.0,0.00011223,2]
[361089848,1747247435358,-400.0,0.00011223,2]
[361089849,1747247435368,-400.0,0.00011223,2]
[361089850,1747247435378,-400.0,0.00011223,2]
[361089851,1747247435387,-400.0,0.00011223,2]
[361089852,1747247435397,-400.0,0.00011223,2]
[361089853,1747247435406,-400.0,0.00011223,2]
[361089854,1747247435416,-507.18,0.00011223,2]
[361089855,1747247435425,-401.77379023,0.00011223,2]
[361089856,1747247435436,-400.0,0.00011223,2]
[361089857,1747247435446,-400.0,0.00011223,2]
[361089858,1747247435455,-400.0,0.00011223,2]
[361089859,1747247435465,-400.0,0.00011223,2]
[361089860,1747247435474,-1169.91,0.00011223,2]
[361089861,1747247435483,-400.0,0.00011223,2]
[361089862,1747247435493,-537.74,0.00011223,2]
[361089863,1747247435503,-400.79809043,0.00011223,2]
[361089864,1747247435512,-500.0,0.00011223,2]
[361089865,1747247435522,-400.0,0.00011223,2]
[361089866,1747247435532,-400.0,0.00011223,2]
[361089867,1747247435542,-400.0,0.00011223,2]
[361089868,1747247435552,-400.0,0.00011223,2]
[361089869,1747247435562,-400.0,0.00011223,2]
[361089870,1747247435572,-400.0,0.00011223,2]
[361089871,1747247435582,-400.0,0.00011223,2]
[361089872,1747247435592,-799.13,0.00011223,2]
[361089873,1747247435602,-400.0,0.00011223,2]
[361089874,1747247435612,-183.92638364,0.00011223,2]
[361089875,1747247435622,-400.0,0.00011223,2]
[361089876,1747247435631,-403.1517639,0.00011223,2]
[361089877,1747247435641,-400.0,0.00011223,2]
[361089878,1747247435650,-400.0,0.00011223,2]
[361089879,1747247435659,-400.0,0.00011223,2]
[361089880,1747247435669,-400.0,0.00011223,2]
[361089881,1747247435679,-400.0,0.00011223,2]
[361089882,1747247435688,-400.0,0.00011223,2]
[361089883,1747247435698,-400.0,0.00011223,2]
[361089884,1747247435707,-400.0,0.00011223,2]
[361089885,1747247435717,-400.0,0.00011223,2]
[361089886,1747247435726,-464.94,0.00011223,2]
[361089887,1747247435736,-400.0,0.00011223,2]
[361089888,1747247435745,-400.0,0.00011223,2]
[361089889,1747247435755,-443.11,0.00011223,2]
[361089890,1747247435765,-400.0,0.00011223,2]
[361089891,1747247435774,-408.04441823,0.00011223,2]
[361089892,1747247435784,-400.0,0.00011223,2]
[361089893,1747247435793,-441.22,0.00011223,2]
[361089894,1747247435803,-400.0,0.00011223,2]
[361089895,1747247435812,-400.0,0.00011223,2]
[361089896,1747247435822,-400.0,0.00011223,2]
[361089897,1747247435831,-400.0,0.00011223,2]
[361089898,1747247435841,-400.0,0.00011223,2]
[361089899,1747247435851,-400.0,0.00011223,2]
[361089900,1747247435860,-400.0,0.00011223,2]
[361089901,1747247435869,-400.0,0.00011223,2]
[361089902,1747247435879,-423.42,0.00011223,2]
[361089903,1747247435888,-400.0,0.00011223,2]
[361089904,1747247435898,-400.0,0.00011223,2]
[361089905,1747247435908,-400.0,0.00011223,2]
[361089906,1747247435917,-203.19760473,0.00011223,2]
[361089907,1747247435927,-400.0,0.00011223,2]
[361089908,1747247435936,-400.0,0.00011223,2]
[361089909,1747247435946,-435.30482086,0.00011223,2]
[361089910,1747247435955,-535.41,0.00011223,2]
[361089911,1747247435964,-414.9148318,0.00011223,2]
[361089912,1747247435974,-160.32059686,0.00011223,2]
[361089913,1747247435984,-2434.34,0.00011223,2]
[361089914,1747247435993,-400.0,0.00011223,2]
[361089915,1747247436002,-400.0,0.00011223,2]
[361089916,1747247436012,-832.25,0.00011223,2]
[361089917,1747247436021,-400.0,0.00011223,2]
[361089918,1747247436030,-400.0,0.00011223,2]
[361089919,1747247436039,-400.0,0.00011223,2]
[361089920,1747247436049,-400.0,0.00011223,2]
[361089921,1747247436059,-400.0,0.00011223,2]
[361089922,1747247436069,-400.0,0.00011223,2]
[361089923,1747247436078,-400.0,0.00011223,2]
[361089924,1747247436087,-411.94229839,0.00011223,2]
[361089925,1747247436096,-404.44,0.00011223,2]
[361089926,1747247436105,-400.0,0.00011223,2]
[361089927,1747247436114,-400.0,0.00011223,2]
[361089928,1747247436123,-400.0,0.00011223,2]
[361089929,1747247436134,-443.69,0.00011223,2]
[361089930,1747247436144,-400.0,0.00011223,2]
[361089931,1747247436155,-400.0,0.00011223,2]
[361089932,1747247436168,-310.61539631,0.00011223,2]
[361089933,1747247436177,-400.0,0.00011223,2]
[361089934,1747247436187,-400.0,0.00011223,2]
[361089935,1747247436196,-400.0,0.00011223,2]
[361089936,1747247436207,-414.50774805,0.00011223,2]
[361089937,1747247436216,-400.0,0.00011223,2]
[361089938,1747247436226,-400.0,0.00011223,2]
[361089939,1747247436237,-451.5,0.00011223,2]
[361089940,1747247436247,-423.32,0.00011223,2]
[361089941,1747247436257,-451.41,0.00011223,2]
[361089942,1747247436266,-400.0,0.00011223,2]
[361089943,1747247436275,-400.0,0.00011223,2]
[361089944,1747247436284,-400.0,0.00011223,2]
[361089945,1747247436294,-400.0,0.00011223,2]
[361089946,1747247436303,-413.45,0.00011223,2]
[361089947,1747247436312,-400.0,0.00011223,2]
[361089948,1747247436322,-400.0,0.00011223,2]
[361089949,1747247436331,-400.0,0.00011223,2]
[361089950,1747247436340,-400.0,0.00011223,2]
[361089951,1747247436350,-400.0,0.00011223,2]
[361089952,1747247436361,-400.0,0.00011223,2]
[361089953,1747247436371,-572.94,0.00011223,2]
[361089954,1747247436380,-400.0,0.00011223,2]
[361089955,1747247436390,-400.0,0.00011223,2]
[361089956,1747247436399,-298.87706934,0.00011223,2]
[361089957,1747247436408,-400.0,0.00011223,2]
[361089958,1747247436417,-276.72679917,0.00011223,2]
[361089959,1747247436428,-400.0,0.00011223,2]
[361089960,1747247436437,-400.0,0.00011223,2]
[361089961,1747247436446,-400.0,0.00011223,2]
[361089962,1747247436456,-177.85121806,0.00011223,2]
[361089963,1747247436466,-400.0,0.00011223,2]
[361089964,1747247436475,-400.0,0.00011223,2]
[361089965,1747247436485,-578.98,0.00011223,2]
[361089966,1747247436494,-400.0,0.00011223,2]
[361089967,1747247436504,-400.0,0.00011223,2]
[361089968,1747247436513,-400.0,0.00011223,2]
[361089969,1747247436524,-400.0,0.00011223,2]
[361089970,1747247436535,-400.0,0.00011223,2]
[361089971,1747247436544,-451.29,0.00011223,2]
[361089972,1747247436554,-508.78,0.00011223,2]
[361089973,1747247436563,-400.0,0.00011223,2]
[361089974,1747247436572,-451.09,0.00011223,2]
[361089975,1747247436581,-400.0,0.00011223,2]
[361089976,1747247436590,-400.0,0.00011223,2]
[361089977,1747247436599,-1071.88,0.00011223,2]
[361089978,1747247436608,-440.63,0.00011223,2]
[361089979,1747247436618,-326.03398687,0.00011223,2]
[361089980,1747247436630,-400.0,0.00011223,2]
[361089981,1747247436639,-400.0,0.00011223,2]
[361089982,1747247436648,-288.4554143,0.00011223,2]
[361089983,1747247436658,-400.0,0.00011223,2]
[361089984,1747247436667,-384.14615843,0.00011223,2]
[361089985,1747247436676,-227.0445857,0.00011223,2]
[361089986,1747247436687,-400.0,0.00011223,2]
[361089987,1747247436696,-400.0,0.00011223,2]
[361089988,1747247436706,-323.25821823,0.00011223,2]
[361089989,1747247436715,-400.0,0.00011223,2]
[361089990,1747247436725,-400.0,0.00011223,2]
[361089991,1747247436734,-400.0,0.00011223,2]
[361089992,1747247436743,-468.7,0.00011223,2]
[361089993,1747247436753,-1186.8,0.00011223,2]
[361089994,1747247436763,-400.0,0.00011223,2]
[361089995,1747247436772,-400.0,0.00011223,2]
[361089996,1747247436782,-1119.61,0.00011223,2]
[361089997,1747247436791,-400.0,0.00011223,2]
[361089998,1747247436800,-500.0,0.00011223,2]
[361089999,1747247436810,-736.82,0.00011223,2]
[361090000,1747247436820,-400.0,0.00011223,2]
[361090001,1747247436829,-525.4,0.00011223,2]
[361090002,1747247436839,-1864.47,0.00011223,2]
[361090003,1747247436848,-583.4,0.00011223,2]
[361090004,1747247436858,-1192.7,0.00011223,2]
[361090005,1747247436867,-472.59509545,0.00011223,2]
[361090006,1747247436876,-400.0,0.00011223,2]
[361090007,1747247436885,-1030.18,0.00011223,2]
[361090008,1747247436895,-501.36,0.00011223,2]
[361090009,1747247436904,-400.0,0.00011223,2]
[361090010,1747247436914,-531.85,0.00011223,2]
[361090011,1747247436924,-400.0,0.00011223,2]
[361090012,1747247436934,-400.0,0.00011223,2]
[361090013,1747247436944,-519.99,0.00011223,2]
[361090014,1747247436953,-400.0,0.00011223,2]
[361090015,1747247436963,-730.68,0.00011223,2]
[361090016,1747247436972,-400.0,0.00011223,2]
[361090017,1747247436981,-5541.52,0.00011223,2]
[361090018,1747247436992,-400.0,0.00011223,2]
[361090019,1747247437001,-400.0,0.00011223,2]
[361090020,1747247437012,-1287.07,0.00011223,2]
[361090021,1747247437022,-1290.98,0.00011223,2]
[361090022,1747247437031,-900.91,0.00011223,2]
[361090023,1747247437041,-400.0,0.00011223,2]
[361090024,1747247437050,-400.0,0.00011223,2]
[361090025,1747247437059,-720.09,0.00011223,2]
[361090026,1747247437069,-424.96,0.00011223,2]
[361090027,1747247437078,-400.0,0.00011223,2]
[361090028,1747247437087,-400.0,0.00011223,2]
[361090029,1747247437098,-400.0,0.00011223,2]
[361090030,1747247437108,-400.0,0.00011223,2]
[361090031,1747247437118,-547.54,0.00011223,2]
[361090032,1747247437128,-900.1,0.00011223,2]
[361090033,1747247437137,-1796.56,0.00011223,2]
[361090034,1747247437149,-400.0,0.00011223,2]
[361090035,1747247437159,-400.0,0.00011223,2]
[361090036,1747247437172,-400.0,0.00011223,2]
[361090037,1747247437181,-457.78,0.00011223,2]
[361090038,1747247437191,-1545.44,0.00011223,2]
[361090039,1747247437203,-1154.32,0.00011223,2]
[361090040,1747247437213,-1530.11,0.00011223,2]
[361090041,1747247437224,-6415.46,0.00011223,2]
[361090042,1747247437237,-400.0,0.00011223,2]
[361090043,1747247437248,-575.12,0.00011223,2]
[361090044,1747247437257,-400.0,0.00011223,2]
[361090045,1747247437266,-400.0,0.00011223,2]
[361090046,1747247437275,-9628.16,0.00011223,2]
[361090047,1747247437285,-460.87,0.00011223,2]
[361090048,1747247437294,-400.0,0.00011223,2]
[361090049,1747247437481,-400.0,0.00011223,2]
[361090050,1747247437513,-324.29972627,0.00011223,2]